Cogmind - Beta 13 @@@ ROGUE MODE // 2024.04.07 @ 23:54:13 Player: Olafz Result: Destroyed by G-34 Mercenary with Small Laser Performance ------------- Evolutions (1) 500 Regions Visited (3) 600 Robots Destroyed (25) 125 Value Destroyed (468) 468 Prototype IDs (0) 0 Alien Tech Used (0) 0 Bonus (0) 0 TOTAL SCORE: 1693 Bonus ------- None Cogmind --------- Core Integrity 0/400 Matter 300/300 Energy 100/100 System Corruption 3% Temperature Cool (6) Movement Core (1450) Ox28 Location -9/Mines Parts ------- > --- POWER (1) -------- (None) > --- PROPULSION (2) --- (None) > --- UTILITY (4) ------ Huge Storage Unit > --- WEAPON (2) ------- Hammer Heavy Hammer > --- INVENTORY (25) --- Small Storage Unit Large Storage Unit Weight Redist. System Weight Redist. System Light Assault Rifle Light Assault Rifle Peak State ------------ > --- POWER ------------ Ion Engine > --- PROPULSION ------- Light Treads Light Treads > --- UTILITY ---------- Huge Storage Unit Light Armor Plating > --- WEAPON ----------- Light Assault Rifle Light Assault Rifle > --- INVENTORY -------- Ion Engine Light Ion Engine Light Treads Light Treads Light Treads Small Storage Unit Large Storage Unit Weight Redist. System Light Assault Rifle [Rating: 8] Favorites ----------- Power Ion Engine Engine Ion Engine Propulsion Light Treads Treads Light Treads Utility Huge Storage Unit Storage Huge Storage Unit Protection Light Armor Plating Weapon Light Assault Rifle Ballistic Gun Light Assault Rifle Impact Weapon Heavy Hammer Build | -11 -10 -9 -9 ------- Run | Yrd Mat Mat Min Slots Evolved 2 | . . 2 . Power . | . . . . Propulsion . | . . . . Utility 2 | . . 2 . Weapon . | . . . . Parts Attached 21 | 5 5 4 7 Power 3 | 1 . 1 1 Engine 3 | 1 . 1 1 Core . | . . . . Reactor . | . . . . Propulsion 7 | 2 . 2 3 Treads 7 | 2 . 2 3 Leg . | . . . . Wheel . | . . . . Hover . | . . . . Flight . | . . . . Utility 4 | 1 3 . . Device . | . . . . Storage 3 | 1 2 . . Processor . | . . . . Hackware . | . . . . Protection 1 | . 1 . . Artifact . | . . . . Weapon 7 | 1 2 1 3 Energy Gun . | . . . . Energy Cannon . | . . . . Ballistic Gun 5 | 1 2 . 2 Ballistic Cannon . | . . . . Launcher . | . . . . Special Weapon . | . . . . Impact Weapon 2 | . . 1 1 Slashing Weapon . | . . . . Piercing Weapon . | . . . . Special Melee Weapon . | . . . . Unidentified Prototypes . | . . . . Parts Lost 10 | . 1 4 5 Power 1 | . . . 1 Propulsion 6 | . . 2 4 Utility 1 | . 1 . . Weapon 2 | . . 2 . Highest Loss Streak 4 | . 1 4 3 To Critical Strikes . | . . . . Average Slot Usage (%) 72 | . 93 64 62 Engine 11 | . 14 11 9 Treads 22 | . 28 21 20 Storage 11 | . 13 11 11 Protection 3 | . 10 . . Ballistic Gun 16 | . 25 19 9 Impact Weapon 6 | . . 1 12 Naked Turns . | . . . . Heaviest Build 90 | 11 90 87 89 Greatest Support 40 | 40 40 40 40 Greatest Overweight (x) 28 | . 2 2 28 Average Overweight (x) 1 | . 1 2 2 Largest Inventory Capacity 25 | 8 25 25 25 Average Capacity 24 | 7 24 25 25 Most Carried 11 | 1 10 11 8 Average Carried 6 | . 6 10 5 Final Capacity 25 | 8 25 25 25 Final Carried 10 | 1 10 8 6 Class Distribution -------------------- 100% | Mutant Dominant Class ---------------- Mutant | -10/Materials Mutant | -9/Materials Mutant | -9/Mines Resources | -11 -10 -9 -9 ----------- Run | Yrd Mat Mat Min Matter Collected 521 | 83 164 15 259 Remotely . | . . . . Salvage Created 654 | . 189 89 376 Parts 38 | . 19 7 12 Haulers Intercepted 2 | . 2 . . Recyclers Shooed 1 | . 1 . . Parts Field Recycled . | . . . . Retrieved Matter . | . . . . Parts Self-Destructed . | . . . . Prevented . | . . . . Kills | -11 -10 -9 -9 ------- Run | Yrd Mat Mat Min Combat Hostiles Destroyed 21 | . 6 3 12 Melee 6 | . . 1 5 Guns 11 | . 6 2 3 Cannons 1 | . . . 1 Classes Destroyed 5 | . 2 1 2 Worker 2 | . . . 2 Hauler 2 | . 2 . . Swarmer 11 | . 6 1 4 Grunt 9 | . . 2 7 Brawler 1 | . . . 1 Best Kill Streak 4 | . 3 1 4 Combat Bots Only 4 | . 3 1 4 Max Kills in Single Turn 1 | . 1 1 1 Gunslinging . | . . . . Exploded . | . . . . Melee 1 | . . 1 1 Uniques/NPCs Destroyed . | . . . . Combat | -11 -10 -9 -9 -------- Run | Yrd Mat Mat Min Hostile Shots Fired 252 | . 69 77 106 Missed 41 | . 13 13 15 Damage Taken 2026 | . 445 554 1027 Core 477 | . 68 126 283 Absorbed by Shields . | . . . . Core Remaining (%) 86 | 100 72 . . Volleys Fired 88 | . 36 28 24 Largest 2 | . 2 2 1 Hottest 40 | . 40 40 20 Shots Fired 145 | . 72 48 25 Gun 145 | . 72 48 25 Cannon . | . . . . Launcher . | . . . . Special . | . . . . Kinetic 145 | . 72 48 25 Thermal . | . . . . Explosive . | . . . . Electromagnetic . | . . . . Robot Hit Streak 8 | . 8 5 8 Robot Miss Streak 5 | . 4 5 4 Penetration Max . | . . . . Secondary Targets 3 | . 3 . . Max Gunslinging Chain 1 | . 1 . . Shots Hit Robots 126 | . 43 28 55 Core Hits 40 | . 17 8 15 Critical Kills 3 | . 1 1 1 Critical Parts Destroyed 5 | . 1 1 3 Critical Strikes 8 | . 2 2 4 Destroy 3 | . 2 1 . Smash 5 | . . 1 4 Melee Attacks 59 | . . 7 52 Impact 59 | . . 7 52 Slashing . | . . . . Piercing . | . . . . Sneak Attacks 2 | . . . 2 Combat Hostiles . | . . . . Follow-up Attacks 1 | . . . 1 Damage Inflicted 1913 | . 366 263 1284 Guns 714 | . 363 215 136 Cannons . | . . . . Explosions . | . . . . Melee 1196 | . . 48 1148 Ramming 3 | . 3 . . Kinetic 714 | . 363 215 136 Thermal . | . . . . Explosive . | . . . . Electromagnetic . | . . . . Impact 1196 | . . 48 1148 Slashing . | . . . . Piercing . | . . . . Highest Corruption 3 | . . 2 3 Average Corruption 2 | . . 1 2 Corruption Purged . | . . . . Corruption Blocked . | . . . . Effects 17 | . . . 17 Message Errors 4 | . . . 4 Matter Fused 3 | . . . 3 Heat Flow Errors 2 | . . . 2 Energy Discharges 2 | . . . 2 Data Loss (minor) 2 | . . . 2 Data Loss (major) 1 | . . . 1 Misfires 2 | . . . 2 Weapon Failures 1 | . . . 1 Overload Shots . | . . . . Overflow Damage 231 | . . . 231 Projectiles . | . . . . Explosions . | . . . . Melee 231 | . . . 231 Knockbacks 5 | . . . 5 Impact 4 | . . . 4 Kinetic . | . . . . Secondary 1 | . . . 1 Self-Inflicted Damage . | . . . . Shots . | . . . . Rammed 1 | . 1 . . Targets Rammed 1 | . 1 . . Kicked . | . . . . Crushed . | . . . . Highest Temperature 154 | . 12 3 154 Average Temperature 13 | . 5 3 48 Received Heat Transfer 534 | . . 108 426 Siege Activations . | . . . . Robots Corrupted . | . . . . Combat Hostiles . | . . . . Parts Fried 6 | . . . 6 Impact Corruptions 11 | . . . 11 Robots Melted . | . . . . Combat Hostiles . | . . . . Parts Melted . | . . . . Heat Transferred . | . . . . Parts Sabotaged . | . . . . Parts Stolen . | . . . . Parts Stripped . | . . . . Power Chain Reactions . | . . . . Alert | -11 -10 -9 -9 ------- Run | Yrd Mat Mat Min Peak Influence 165 | . 130 87 165 Initial 54 | . . 54 7 Average 37 | . 37 52 32 Maximum Alert Level . | . . . . Low Security (%) 100 | 100 100 100 100 Level 1 . | . . . . Level 2 . | . . . . Level 3 . | . . . . Level 4 . | . . . . Level 5 . | . . . . High Security . | . . . . Max Security . | . . . . Squads Dispatched 5 | . 1 2 2 Investigation 2 | . . . 2 Extermination . | . . . . Reinforcement 3 | . 1 2 . Assault . | . . . . Garrison . | . . . . Intercept . | . . . . Searches Triggered . | . . . . Construction Impeded . | . . . . Haulers Reinforced . | . . . . Active Scanning Responses . | . . . . Cargo Convoy Interrupts . | . . . . Stealth | -11 -10 -9 -9 --------- Run | Yrd Mat Mat Min Distress Signals 2 | . . 2 . Communications Jammed . | . . . . Distress Signals . | . . . . Times Spotted 34 | . 10 10 14 Peak Tracking Total 5 | . 3 5 4 Tactical Retreats 1 | . . . 1 Traps | -11 -10 -9 -9 ------- Run | Yrd Mat Mat Min Traps Triggered 2 | . . 2 . Indirectly . | . . . . Trap Hack Attempts . | . . . . Triggered . | . . . . Disarmed . | . . . . Reprogrammed . | . . . . Reused . | . . . . Traps Extracted . | . . . . Installed . | . . . . Triggered . | . . . . Machines | -11 -10 -9 -9 ---------- Run | Yrd Mat Mat Min Machines Disabled 1 | . . . 1 Max in Single Turn 1 | . . . 1 Machines Repaired . | . . . . Machines Dismantled . | . . . . Machines Sabotaged . | . . . . Overloaded Fab Kills . | . . . . Hacking | -11 -10 -9 -9 --------- Run | Yrd Mat Mat Min Machines Accessed 3 | . . 1 2 Terminals 3 | . . 1 2 Fabricators . | . . . . Repair Stations . | . . . . Recycling Units . | . . . . Scanalyzers . | . . . . Garrison Access . | . . . . Total Hacks 10 | . . 2 8 Successful 7 | . . 2 5 Failed 3 | . . . 3 Catastrophic 1 | . . . 1 Database Lockouts . | . . . . Manual 7 | . . 1 6 Terminals 10 | . . 2 8 Fabricators . | . . . . Repair Stations . | . . . . Recycling Units . | . . . . Scanalyzers . | . . . . Garrison Access . | . . . . Terminal Hacks 7 | . . 2 5 Record 4 | . . . 4 Branch Access Points 1 | . . 1 . Investigation Status 1 | . . . 1 Hauler Manifests 1 | . . 1 . Fabricator Hacks . | . . . . Repair Station Hacks . | . . . . Recycling Unit Hacks . | . . . . Scanalyzer . | . . . . Garrison Access Hacks . | . . . . Unauthorized Hacks . | . . . . Terminals . | . . . . Fabricators . | . . . . Repair Stations . | . . . . Recycling Units . | . . . . Scanalyzers . | . . . . Garrison Access . | . . . . Data Cores Recovered . | . . . . Used . | . . . . Hacking Detections 3 | . . 1 2 Full Trace Events 2 | . . . 2 Feedback Events . | . . . . Feedback Blocked . | . . . . Robot Schematics Acquired . | . . . . Robots Built . | . . . . Authchips . | . . . . Time . | . . . . Total Robot Build Rating . | . . . . Part Schematics Acquired . | . . . . Parts Built . | . . . . Authchips . | . . . . Time . | . . . . Total Part Build Rating . | . . . . Parts Repaired . | . . . . Time . | . . . . Parts Recycled . | . . . . Recycled Matter . | . . . . Retrieved Matter . | . . . . Retrieved Components . | . . . . Parts Scanalyzed . | . . . . Part Schematics Acquired . | . . . . Parts Damaged . | . . . . Bothacking | -11 -10 -9 -9 ------------ Run | Yrd Mat Mat Min Used RIF Installer . | . . . . Robots Hacked . | . . . . Non-combat . | . . . . Combat . | . . . . Robot Hacks Applied . | . . . . Relay Couplers Released . | . . . . Fabnet Peak Effective % . | . . . . Robots Rewired . | . . . . Allies Hacked . | . . . . Hacks Repelled . | . . . . Allies | -11 -10 -9 -9 -------- Run | Yrd Mat Mat Min Total Allies . | . . . . Largest Group . | . . . . Highest-Rated Group . | . . . . Highest-Rated Ally . | . . . . Total Orders . | . . . . Ally Attacks . | . . . . Total Damage . | . . . . Kills . | . . . . Allies Corrupted . | . . . . Allies Melted . | . . . . Intel | -11 -10 -9 -9 ------- Run | Yrd Mat Mat Min Robot Analysis Total . | . . . . Derelict Logs Recovered 1 | . . . 1 Drone Launches . | . . . . Drone Recoveries . | . . . . Exploration | -11 -10 -9 -9 ------------- Run | Yrd Mat Mat Min Turns Passed 2613 | 64 789 533 1227 Spaces Moved 714 | 38 220 139 317 Core 6 | 5 . . 1 Treads 708 | 33 220 139 316 Legs . | . . . . Wheels . | . . . . Hover . | . . . . Flight . | . . . . Fastest Speed 50 | 50 160 320 320 Average Speed 311 | 145 309 320 330 Slowest Speed 1450 | 160 320 320 1450 Overloaded Moves . | . . . . Propulsion Burnouts . | . . . . Robots Hopped . | . . . . Cave-ins Triggered . | . . . . Exploration Rate (%) 32 | 3 42 20 65 Regions Visited 3 Branch Regions 1 Pre-discovered Areas . | . . . . Known Exits Taken 1 | . . 1 . Unknown Exits Taken 2 | 1 1 . . Scrap Searched 1 | . . . 1 Spaces Dug . | . . . . Terrain Destroyed . | . . . . Melee . | . . . . Projectile . | . . . . AOE . | . . . . Terrain Rammed . | . . . . Walls Destroyed . | . . . . Machines Disabled . | . . . . Actions | -11 -10 -9 -9 --------- Run | Yrd Mat Mat Min Total 892 | 44 269 178 401 Wait 2 | 1 . . 1 Move 711 | 37 219 138 317 Hop . | . . . . Pick Up 8 | 1 6 1 . Fast Attach 11 | 5 4 . 2 Attach 5 | . . 3 2 Detach 3 | . 2 . 1 Swap 5 | . 1 1 3 Drop 2 | . . . 2 Fire 88 | . 36 28 24 Melee 56 | . . 7 49 Ram . | . . . . Kick . | . . . . Crush 1 | . 1 . . Escape Stasis . | . . . . Rewire . | . . . . Trap . | . . . . Miscellaneous . | . . . . Route ------- -11/Scrapyard -10/Materials -9/Materials (discovered 2 exits: *Min x2) -9/Mines History --------- Turn | Location | Event 10 | -11/Scrapyard | Discovered new exit (range 15) 65 | -11/Scrapyard | Entered Materials 310 | -10/Materials | Build established: Mutant 825 | -10/Materials | Discovered new exit (range 4) 854 | -10/Materials | Entered another Materials area 854 | -9/Materials | Evolved 2 slots: Utility x2 1035 | -9/Materials | Identified exit to Mines 1361 | -9/Materials | Lost 4 parts (2n2w) 1387 | -9/Materials | Entered Mines 1438 | -9/Mines | Met a Derelict bent on vengeance 1690 | -9/Mines | Learned location of 1 exit from Materials 2290 | -9/Mines | Core integrity fell below 50% 2508 | -9/Mines | Core integrity fell below 20% 2509 | -9/Mines | Lost 3 parts (1p2n) 2614 | -9/Mines | Destroyed by G-34 Mercenary with Small Laser Last Messages --------------- 02574_ G-34 Mercenary destroyed. 02578_ K-01 Serf collects debris. 02584_ System corrupted: Matter fused (-8). 02585_ G-34 Mercenary suffers critical hit (Smash). 02585_ Destroyed Heat Sink. 02585_ G-34 Mercenary system corrupted by crushing effect. 02594_ Lgt. Treads destroyed. 02596_ Hvy. Hammer follow-up attack on G-34 Mercenary. 02600_ G-34 Mercenary heat short circuits Aluminum Leg. 02600_ G-34 Mercenary misfires. 02605_ Destroyed Aluminum Leg. 02605_ G-34 Mercenary system corrupted by crushing effect. 02606_ G-34 Mercenary system terminally corrupted. 02608_ Sneak attack on K-01 Serf. 02608_ K-01 Serf suffers critical hit (Smash). 02608_ Destroyed Med. Matter Pod. 02608_ K-01 Serf system corrupted by crushing effect. 02608_ Wheel fried. 02608_ K-01 Serf destroyed. 02611_ Acquired 3 matter. Map ----- +----------------------------------------------------+ | | | | | ?????????????????????????????? | | ?????????????????????????????? | | ?????????????????????????????? | | ?????????????????????????????? | | ?????????????????????????????? | | ?????????????????????????????? | | ?????????????????????????????? | | ?????????????????????????????? | | ?????????????????????????????? | | ?????????????????????????????? | | ??????????????????????#??????? | | ????????????????????? #??????? | | ??????##????????????? #??????? | | ?????? ???????????? ##?????? | | ?????# #??????????? #?????? | | ?????# #?????????? ???????? | | ?????# #????####?# ????????? | | ?????# #???## ## ?????????? | | ?????# ??? ??????????? | | ?????# #???? ???????????? | | ?????# #????? #????????????? | | ????## ####### #?????????????? | | ????#g #######???????? | | ????#@######## #???????? | | ????#[#??????###### #???????? | | ????# #?????????### ##??????? | | ????# #?????????# #####??? | | ?####%###???????# #? | | ?#T = #???????# """ #? | | ?## %""#???????# """ #######? | | ??# """#???????# """ #######? | | ??# """#???????# #? | | ??# #???????# """ ##### ## | | ??# #???????# """ #???# ? | | ??#######???????# """ #???# #? | | ????????????????# #?### #? | | ????????????????## ###### ## | | ?????????????????# #???# | | ?????????????????# #??## | | ?????????????????# #### | | ?????????????????# | | ?????????????????# ##### | | ?????????????????# #???## # | | ?????????????????# #????#### # | | ?????????????????# #???????# # | | ?????????????????# #???????# # | | ???????????????### ##??????# # | | ?#######??????## ######## # | +----------------------------------------------------+ Best States ------------- Heat Dissipation 28 Energy Generation 10 Energy Capacity 250 Matter Stores 300 Matter Capacity 300 Sight Range 16 Terrain Scan Density 10 Armor Coverage 150 Evasion (%) 40 Recoil Reduction 2 Item Schematics ----------------- None Robot Schematics ------------------ None Fabricated ------------ Nothing Alien Tech Used ----------------- None Achievements -------------- None Challenges ------------ None Game ------ Seed DrainedWaveMicroactuators Manual? 0 Play Time 00:09:41 Cumulative 32.1 hours Start 2024.04.07 @ 23:44:45 End 2024.04.07 @ 23:54:13 Sessions 1 Manual Loads 0 Difficulty Rogue Special Mode None Game No. 87 Rogue 85 Adventurer 2 Explorer 0 Win Type - Total 0 Types 0/0/0/0/0/0/0/0/0 Lore% 25 Gallery% 32 Achievement% 25 Wizard Run 0 Options --------- Layout 0 ASCII 0 Keyboard 1 Movement Numpad Keybinds 0 Fullscreen 2 Font 18/SmallcapsGlow Map View 76x50 Zoom Use 0% Tactical HUD 1 Map Filters NONE Filters NONE Steam 1 RUN: acbac1c5-3ab6-4842-9b7c-4ddfb51798bb